fUSD/lending_fUSD_20241122
["ID","MTS","AMOUNT","RATE_DAILY","PERIOD"]
[342991946,1732266636472,-153.0,0.0009589,120]
[342991947,1732266636481,-153.0,0.0009589,120]
[342991948,1732266636491,-153.0,0.0009589,120]
[342991949,1732266636500,-153.0,0.0009589,120]
[342991950,1732266636509,-153.0,0.0009589,120]
[342991951,1732266636518,-153.0,0.0009589,120]
[342991952,1732266636528,-153.0,0.0009589,120]
[342991953,1732266636537,-153.0,0.0009589,120]
[342991954,1732266636547,-153.0,0.0009589,120]
[342991955,1732266636556,-153.0,0.0009589,120]
[342991956,1732266636565,-153.0,0.0009589,120]
[342991957,1732266636574,-153.0,0.0009589,120]
[342991958,1732266636584,-153.0,0.0009589,120]
[342991959,1732266636596,-153.0,0.0009589,120]
[342991960,1732266636605,-153.0,0.0009589,120]
[342991961,1732266636615,-153.0,0.0009589,120]
[342991962,1732266636623,-153.0,0.0009589,120]
[342991963,1732266636633,-153.0,0.0009589,120]
[342991964,1732266636642,-153.0,0.0009589,120]
[342991965,1732266636652,-153.0,0.0009589,120]
[342991966,1732266636661,-153.0,0.0009589,120]
[342991967,1732266636670,-153.0,0.0009589,120]
[342991968,1732266636680,-153.0,0.0009589,120]
[342991969,1732266636690,-153.0,0.0009589,120]
[342991970,1732266636699,-10004.0,0.000959,120]
[342991971,1732266636707,-6280.54584949,0.00096247,15]
[342991972,1732266636716,-6280.54584949,0.00096703,15]
[342991973,1732266636726,-300.88127697,0.00096706,60]
[342991974,1732266636735,-536.96,0.00096798,120]
[342991975,1732266636746,-500.0,0.00096798,120]
[342991976,1732266636755,-220.99520435,0.00096798,120]
[342991977,1732266636766,-500.0,0.00096799,120]
[342991978,1732266636777,-500.0,0.00096799,120]
[342991979,1732266636787,-540.66,0.00096799,120]
[342991980,1732266636796,-500.0,0.00096799,120]
[342991981,1732266636805,-500.0,0.00096799,120]
[342991982,1732266636814,-500.0,0.00096799,120]
[342991983,1732266636823,-500.0,0.00096799,120]
[342991984,1732266636832,-500.0,0.00096799,21]
[342991985,1732266636842,-1996.96,0.00096799,120]
[342991986,1732266636852,-500.0,0.00096799,120]
[342991987,1732266636861,-567.86,0.00096799,120]
[342991988,1732266636871,-500.0,0.00096799,120]
[342991989,1732266636880,-500.0,0.00096799,120]
[342991990,1732266636890,-500.0,0.00096799,120]
[342991991,1732266636899,-500.0,0.00096799,120]
[342991992,1732266636909,-500.0,0.00096799,120]
[342991993,1732266636919,-500.0,0.00096799,120]
[342991994,1732266636928,-470.66674766,0.00096799,120]
[342991995,1732266636937,-500.0,0.00096799,120]
[342991996,1732266636946,-500.0,0.00096799,120]
[342991997,1732266636955,-500.0,0.00096799,120]
[342991998,1732266636965,-500.0,0.00096799,120]
[342991999,1732266636974,-518.1,0.00096799,120]
[342992000,1732266636983,-500.0,0.00096799,120]
[342992001,1732266636992,-884.31,0.00096799,120]
[342992002,1732266637001,-500.0,0.00096799,120]
[342992003,1732266637011,-500.0,0.00096799,120]
[342992004,1732266637021,-500.0,0.00096799,120]
[342992005,1732266637030,-594.19,0.00096799,120]
[342992006,1732266637040,-500.0,0.00096799,120]
[342992007,1732266637049,-513.15,0.00096799,120]
[342992008,1732266637059,-500.0,0.00096799,120]
[342992009,1732266637069,-626.13,0.00096799,120]
[342992010,1732266637080,-500.0,0.00096799,120]
[342992011,1732266637090,-500.0,0.00096799,120]
[342992012,1732266637103,-548.27,0.00096799,120]
[342992013,1732266637113,-500.0,0.00096799,120]
[342992014,1732266637122,-540.38,0.00096799,120]
[342992015,1732266637131,-180.0045226,0.00096799,120]
[342992016,1732266637145,-405.72510862,0.00096799,120]
[342992017,1732266637155,-643.58,0.00096799,120]
[342992018,1732266637166,-233.98768489,0.00096799,120]
[342992019,1732266637175,-56148.7957,0.000968,120]
[342992020,1732266637185,-168.24049769,0.000968,28]
[342992021,1732266637194,-500.0,0.00096821,120]
[342992022,1732266637203,-500.0,0.00096821,120]
[342992023,1732266637212,-169.3,0.00096821,120]
[342992024,1732266637221,-499.52,0.00096821,120]
[342992025,1732266637231,-500.0,0.00096821,21]
[342992026,1732266637240,-1996.96,0.00096821,120]
[342992027,1732266637250,-500.0,0.00096821,120]
[342992028,1732266637259,-567.86,0.00096821,120]
[342992029,1732266637269,-181.75,0.00096821,120]
[342992030,1732266637279,-500.0,0.00096821,120]
[342992031,1732266637288,-500.0,0.00096821,120]
[342992032,1732266637298,-500.0,0.00096821,120]
[342992033,1732266637309,-540.38,0.00096821,120]
[342992034,1732266637319,-500.45360806,0.00096871,30]
[342992035,1732266637328,-483.52760321,0.00096877,15]
[342992036,1732266637337,-23832.8063,0.000969,120]
[342992037,1732266637349,-295.9393,0.000969,60]
[342992038,1732266637359,-8460.4367,0.000969,30]
[342992039,1732266637368,-7101.5263,0.000969,120]
[342992040,1732266637378,-50854.66487204,0.000969,120]
[342992041,1732266637390,-728.84,0.000969,120]
[342992044,1732266638219,-224.73964509,0.000759,2]
[342992045,1732266638230,-139.97035491,0.00096799,120]
[342992046,1732266638277,-344.452,0.00096799,120]
[342992047,1732266638338,-15.57764509,0.00096799,120]
[342992048,1732266638352,-4495.12722796,0.000969,120]
[342992049,1732266638361,-8827.2734,0.000969,120]
[342992050,1732266638370,-299.9527354,0.00096922,120]
[342992051,1732266638381,-207.87078032,0.00096956,68]
[342992052,1732266638390,-500.0,0.0009699,2]
[342992053,1732266638399,-160.77792235,0.0009699,60]
[342992054,1732266638408,-773.00172601,0.00096999,120]
[342992055,1732266638417,-762.52,0.00096999,120]
[342992056,1732266638427,-500.0,0.00096999,120]
[342992057,1732266638438,-500.0,0.00096999,120]
[342992058,1732266638447,-500.0,0.00096999,120]
[342992059,1732266638456,-500.0,0.00096999,120]
[342992060,1732266638466,-500.0,0.00096999,120]
[342992061,1732266638475,-500.0,0.00096999,120]
[342992062,1732266638484,-165.66,0.00096999,120]
[342992063,1732266638493,-768.85,0.00096999,120]
[342992064,1732266638503,-500.0,0.00096999,120]
[342992065,1732266638512,-500.0,0.00096999,120]
[342992066,1732266638522,-500.0,0.00096999,120]
[342992067,1732266638531,-500.0,0.00096999,120]
[342992068,1732266638540,-500.0,0.00096999,120]
[342992069,1732266638549,-500.0,0.00096999,120]
[342992070,1732266638558,-500.0,0.00096999,120]
[342992071,1732266638567,-500.0,0.00096999,120]
[342992073,1732266638576,-500.0,0.00096999,120]
[342992075,1732266638585,-623.78,0.00096999,120]
[342992077,1732266638595,-500.0,0.00096999,120]
[342992079,1732266638604,-500.0,0.00096999,120]
[342992081,1732266638613,-195.56,0.00096999,120]
[342992083,1732266638622,-500.0,0.00096999,120]
[342992085,1732266638631,-500.0,0.00096999,120]
[342992087,1732266638640,-500.0,0.00096999,120]
[342992089,1732266638649,-500.0,0.00096999,120]
[342992091,1732266638658,-500.0,0.00096999,120]
[342992093,1732266638667,-500.0,0.00096999,120]
[342992095,1732266638677,-235.08,0.00096999,120]
[342992097,1732266638686,-500.0,0.00096999,120]
[342992099,1732266638695,-500.0,0.00096999,120]
[342992101,1732266638704,-500.0,0.00096999,120]
[342992102,1732266638714,-500.0,0.00096999,120]
[342992103,1732266638723,-571.88,0.00096999,120]
[342992104,1732266638731,-500.0,0.00096999,120]
[342992105,1732266638741,-500.0,0.00096999,120]
[342992106,1732266638750,-500.0,0.00096999,120]
[342992107,1732266638759,-500.0,0.00096999,120]
[342992108,1732266638768,-500.0,0.00096999,120]
[342992109,1732266638778,-500.0,0.00096999,7]
[342992110,1732266638788,-500.0,0.00096999,120]
[342992111,1732266638797,-500.0,0.00096999,120]
[342992112,1732266638806,-500.0,0.00096999,120]
[342992113,1732266638815,-503.16,0.00096999,120]
[342992114,1732266638823,-509.1,0.00096999,120]
[342992115,1732266638832,-500.0,0.00096999,120]
[342992117,1732266638841,-500.0,0.00096999,120]
[342992119,1732266638852,-1740.77,0.00096999,120]
[342992121,1732266638861,-500.0,0.00096999,120]
[342992123,1732266638870,-689.96,0.00096999,120]
[342992125,1732266638880,-500.0,0.00096999,120]
[342992127,1732266638889,-500.0,0.00096999,120]
[342992129,1732266638898,-500.0,0.00096999,120]
[342992131,1732266638907,-637.7,0.00096999,120]
[342992133,1732266638916,-500.0,0.00096999,120]
[342992135,1732266638925,-579.96,0.00096999,120]
[342992137,1732266638935,-500.0,0.00096999,120]
[342992139,1732266638944,-410.29313618,0.00096999,120]
[342992141,1732266638953,-556.45,0.00096999,120]
[342992142,1732266638962,-487.26,0.00096999,120]
[342992143,1732266638971,-566.21,0.00096999,120]
[342992144,1732266638980,-884.31,0.00096999,120]
[342992145,1732266638990,-500.0,0.00096999,120]
[342992146,1732266638999,-500.0,0.00096999,120]
[342992147,1732266639008,-594.19,0.00096999,120]
[342992148,1732266639018,-500.0,0.00096999,120]
[342992149,1732266639027,-500.0,0.00096999,120]
[342992150,1732266639036,-500.0,0.00096999,120]
[342992151,1732266639046,-100000.0,0.00097,120]
[342992152,1732266639055,-998.86,0.000971,117]
[342992153,1732266639064,-6280.54584949,0.0009716,15]
[342992154,1732266639074,-156.94,0.00097574,2]
[342992155,1732266639084,-6280.54584949,0.00097617,15]
[342992156,1732266639097,-600.0,0.000978,35]
[342992157,1732266639107,-483.52760321,0.00097885,15]
[342992158,1732266639117,-2121.72175677,0.000979,120]
[342992159,1732266639130,-378.27824323,0.000979,120]
[342992160,1732266639139,-1200.0,0.000979,35]
[342992165,1732266639227,-275.75156034,0.000979,91]
[342992167,1732266639238,-150.98,0.0009799,120]
[342992168,1732266639247,-762.52,0.00097999,120]
[342992169,1732266639256,-762.52,0.00097999,120]
[342992170,1732266639265,-500.0,0.00097999,120]
[342992171,1732266639274,-500.0,0.00097999,120]
[342992172,1732266639283,-260.28,0.00097999,120]
[342992173,1732266639292,-500.0,0.00097999,120]
[342992174,1732266639304,-245.64880162,0.00097999,120]
[342992175,1732266639313,-472.85295435,0.00097999,120]
[342992176,1732266639322,-566.54,0.00097999,120]
[342992177,1732266639331,-527.03485076,0.00097999,120]
[342992178,1732266639342,-500.0,0.00097999,120]
[342992179,1732266639353,-500.0,0.00097999,120]
[342992180,1732266639362,-500.0,0.00097999,120]
[342992181,1732266639371,-500.0,0.00097999,120]
[342992182,1732266639380,-500.0,0.00097999,120]
[342992183,1732266639389,-397.5935897,0.00097999,120]
[342992184,1732266639401,-102.4064103,0.00097999,120]
[342992185,1732266639410,-500.0,0.00097999,120]
[342992186,1732266639420,-500.0,0.00097999,120]
[342992187,1732266639432,-474.25,0.00097999,21]
[342992188,1732266639441,-1996.96,0.00097999,120]
[342992189,1732266639451,-1996.96,0.00097999,120]
[342992190,1732266639460,-1996.96,0.00097999,120]
[342992191,1732266639470,-500.0,0.00097999,120]
[342992192,1732266639479,-227.35,0.00097999,120]
[342992193,1732266639489,-500.0,0.00097999,120]
[342992194,1732266639498,-500.0,0.00097999,120]
[342992195,1732266639507,-500.0,0.00097999,120]
[342992196,1732266639516,-567.86,0.00097999,120]
[342992197,1732266639525,-567.86,0.00097999,120]
[342992198,1732266639534,-567.86,0.00097999,120]
[342992199,1732266639544,-249.44,0.00097999,120]
[342992200,1732266639554,-228.65,0.00097999,120]
[342992201,1732266639563,-1740.77,0.00097999,120]
[342992202,1732266639572,-1740.77,0.00097999,120]
[342992203,1732266639581,-689.96,0.00097999,120]
[342992204,1732266639591,-689.96,0.00097999,120]
[342992205,1732266639602,-500.0,0.00097999,120]
[342992206,1732266639611,-500.0,0.00097999,120]
[342992207,1732266639620,-500.0,0.00097999,120]
[342992208,1732266639629,-500.0,0.00097999,120]
[342992209,1732266639638,-261.29,0.00097999,120]
[342992210,1732266639647,-884.31,0.00097999,120]
[342992211,1732266639657,-884.31,0.00097999,120]
[342992212,1732266639666,-224.3,0.00097999,120]
[342992213,1732266639675,-500.0,0.00097999,120]
[342992214,1732266639685,-500.0,0.00097999,120]
[342992215,1732266639694,-500.0,0.00097999,120]
[342992216,1732266639703,-500.0,0.00097999,120]
[342992217,1732266639713,-599.72,0.00097999,120]
[342992218,1732266639722,-594.19,0.00097999,120]
[342992219,1732266639732,-594.19,0.00097999,120]
[342992220,1732266639741,-500.0,0.00097999,120]
[342992221,1732266639750,-394.97874619,0.00097999,120]
[342992222,1732266639759,-174.82,0.00097999,120]
[342992223,1732266639768,-500.0,0.00097999,120]
[342992224,1732266639776,-500.0,0.00097999,120]
[342992225,1732266639785,-540.38,0.00097999,120]
[342992226,1732266639794,-540.38,0.00097999,120]
[342992227,1732266639803,-540.38,0.00097999,120]
[342992228,1732266639812,-14109.26059092,0.00098,120]
[342992229,1732266639824,-10276.71729984,0.00098,120]
[342992230,1732266639835,-357.95902549,0.00098,120]
[342992231,1732266639847,-5739.72485341,0.00098,120]
[342992232,1732266639858,-7689.79156438,0.00098,120]
[342992233,1732266639870,-10986.93958197,0.00098,120]
[342992234,1732266639881,-3787.62619149,0.00098,120]
[342992235,1732266639892,-4440.83944873,0.00098,120]
[342992236,1732266639903,-9241.10016325,0.00098,120]
[342992239,1732266640071,-2818.57812222,0.00084109,2]
[342992240,1732266640083,-1113.00679852,0.00084109,2]
[342992241,1732266640137,-2900.21427926,0.00084109,2]
[342992242,1732266640146,-97.79679154,0.00098,120]
[342992243,1732266640195,-433272.24448898,0.00098,120]
[342992244,1732266640204,-19000.0,0.00098,120]
[342992245,1732266640213,-197.14801689,0.00098,120]
[342992246,1732266640223,-2533.05362,0.0009801,120]
[342992247,1732266640232,-6280.54584949,0.00098073,15]
[342992248,1732266640241,-275.75156033,0.0009815,91]
[342992249,1732266640251,-14246.28699151,0.0009835,120]
[342992250,1732266640260,-275.75156033,0.000984,92]
[342992251,1732266640269,-1299.93611012,0.00098429,120]
[342992252,1732266640278,-14246.28699151,0.00098447,120]
[342992253,1732266640287,-1618.09616846,0.00098449,120]
[342992254,1732266640298,-14246.28699151,0.00098451,120]
[342992255,1732266640310,-150.98,0.0009849,120]
[342992256,1732266640319,-762.52,0.00098499,120]
[342992257,1732266640328,-762.52,0.00098499,120]
[342992258,1732266640337,-500.0,0.00098499,120]
[342992259,1732266640350,-500.0,0.00098499,120]
[342992260,1732266640359,-494.99201,0.00098499,120]
[342992261,1732266640368,-500.0,0.00098499,120]
[342992262,1732266640381,-500.0,0.00098499,120]
[342992263,1732266640393,-500.0,0.00098499,120]
[342992264,1732266640407,-648.52358525,0.00098499,120]
[342992265,1732266640423,-1996.96,0.00098499,120]
[342992266,1732266640438,-1996.96,0.00098499,120]
[342992267,1732266640449,-500.0,0.00098499,120]
[342992268,1732266640461,-567.86,0.00098499,120]
[342992269,1732266640472,-500.0,0.00098499,120]
[342992270,1732266640481,-567.86,0.00098499,120]
[342992271,1732266640491,-1000.0,0.00098499,120]
[342992272,1732266640501,-1740.77,0.00098499,120]
[342992273,1732266640510,-1740.77,0.00098499,120]
[342992275,1732266640520,-689.96,0.00098499,120]
[342992277,1732266640531,-689.96,0.00098499,120]
[342992279,1732266640541,-500.0,0.00098499,120]
[342992281,1732266640552,-500.0,0.00098499,120]
[342992283,1732266640563,-500.0,0.00098499,120]
[342992284,1732266640572,-159.67,0.00098499,120]
[342992285,1732266640584,-884.31,0.00098499,120]
[342992286,1732266640601,-884.31,0.00098499,120]
[342992287,1732266640618,-500.0,0.00098499,120]
[342992288,1732266640634,-500.0,0.00098499,120]
[342992289,1732266640648,-500.0,0.00098499,120]
[342992290,1732266640661,-265.54,0.00098499,120]
[342992291,1732266640672,-594.19,0.00098499,120]
[342992292,1732266640683,-594.19,0.00098499,120]
[342992293,1732266640695,-500.0,0.00098499,120]
[342992294,1732266640707,-500.0,0.00098499,120]
[342992295,1732266640719,-540.38,0.00098499,120]
[342992296,1732266640730,-540.38,0.00098499,120]
[342992297,1732266640742,-501662.98,0.000985,120]
[342992298,1732266640757,-74000.0,0.000985,120]
[342992299,1732266640769,-1299.93611012,0.00098501,120]
[342992300,1732266640782,-6280.54584949,0.0009853,15]
[342992301,1732266640794,-1299.93611012,0.00098573,120]
[342992302,1732266640807,-500.0,0.00098629,120]
[342992303,1732266640819,-768.85,0.00098629,120]
[342992304,1732266640831,-405.96,0.00098629,120]
[342992305,1732266640842,-151.0,0.0009863,120]
[342992306,1732266640855,-500.0,0.0009863,120]
[342992307,1732266640867,-500.0,0.0009863,120]
[342992308,1732266640878,-500.0,0.0009863,120]
[342992309,1732266640889,-500.0,0.0009863,120]
[342992310,1732266640900,-500.0,0.0009863,120]
[342992311,1732266640910,-500.0,0.0009863,120]
[342992312,1732266640921,-500.0,0.0009863,120]
[342992313,1732266640933,-500.0,0.0009863,120]
[342992314,1732266640945,-655.5,0.0009863,120]
[342992315,1732266640955,-655.5,0.0009863,120]
[342992316,1732266640966,-655.5,0.0009863,120]
[342992317,1732266640977,-287.63852087,0.0009863,120]
[342992318,1732266640990,-2287.37,0.0009863,120]
[342992319,1732266641001,-2287.37,0.0009863,120]
[342992320,1732266641012,-2287.37,0.0009863,120]
[342992321,1732266641024,-2287.37,0.0009863,120]
[342992322,1732266641035,-2287.37,0.0009863,120]
[342992323,1732266641047,-500.0,0.0009863,120]
[342992324,1732266641059,-500.0,0.0009863,120]
[342992325,1732266641070,-500.0,0.0009863,120]
[342992326,1732266641082,-500.0,0.0009863,120]
[342992327,1732266641093,-500.0,0.0009863,120]
[342992328,1732266641105,-500.0,0.0009863,120]
[342992329,1732266641116,-500.0,0.0009863,120]
[342992330,1732266641129,-500.0,0.0009863,120]
[342992331,1732266641140,-500.0,0.0009863,120]
[342992332,1732266641150,-500.0,0.0009863,120]
[342992333,1732266641162,-500.0,0.0009863,120]
[342992334,1732266641173,-150.0,0.00098715,90]
[342992335,1732266641184,-150.0,0.00098762,90]
[342992336,1732266641195,-1618.09616846,0.00098765,120]
[342992337,1732266641206,-150.0,0.00098793,90]
[342992338,1732266641218,-2287.37,0.00098799,120]
[342992339,1732266641228,-500.0,0.00098799,120]
[342992340,1732266641239,-500.0,0.00098799,120]
[342992341,1732266641250,-762.52,0.00098799,120]
[342992342,1732266641261,-500.0,0.00098799,120]
[342992343,1732266641273,-1740.77,0.00098799,120]
[342992344,1732266641284,-689.96,0.00098799,120]
[342992345,1732266641296,-500.0,0.00098799,120]
[342992346,1732266641311,-500.0,0.00098799,120]
[342992347,1732266641321,-545.73938652,0.00098799,120]
[342992348,1732266641332,-5954.943543,0.000988,2]
[342992349,1732266641342,-150.0,0.0009886,90]
[342992350,1732266641355,-1618.09616846,0.00098868,120]
[342992351,1732266641365,-150.0,0.00098887,90]
[342992352,1732266641375,-150.0,0.00098888,90]
[342992353,1732266641385,-483.52760321,0.00098892,15]
[342992354,1732266641396,-1470.0,0.000989,45]
[342992355,1732266641407,-1900.0,0.000989,36]
[342992356,1732266641419,-150.0,0.00098908,90]
[342992357,1732266641431,-6280.54584949,0.00098987,15]
[342992358,1732266641443,-150.98,0.0009899,120]
[342992359,1732266641455,-884.31,0.00098998,120]
[342992360,1732266641465,-594.19,0.00098998,120]
[342992361,1732266641475,-2287.37,0.00098999,120]
[342992362,1732266641485,-2287.37,0.00098999,120]
[342992363,1732266641495,-500.0,0.00098999,120]
[342992364,1732266641505,-500.0,0.00098999,120]
[342992365,1732266641515,-500.0,0.00098999,120]
[342992366,1732266641526,-500.0,0.00098999,120]
[342992367,1732266641537,-762.52,0.00098999,120]
[342992368,1732266641548,-762.52,0.00098999,120]
[342992369,1732266641559,-500.0,0.00098999,120]
[342992370,1732266641571,-500.0,0.00098999,120]
[342992371,1732266641581,-500.0,0.00098999,120]
[342992372,1732266641591,-500.0,0.00098999,120]
[342992373,1732266641607,-500.0,0.00098999,120]
[342992374,1732266641616,-1996.96,0.00098999,120]
[342992375,1732266641628,-1996.96,0.00098999,120]
[342992376,1732266641638,-1996.96,0.00098999,120]
[342992377,1732266641648,-567.86,0.00098999,120]
[342992378,1732266641659,-500.0,0.00098999,120]
[342992379,1732266641670,-567.86,0.00098999,120]
[342992380,1732266641680,-500.0,0.00098999,120]
[342992381,1732266641690,-567.86,0.00098999,120]
[342992382,1732266641701,-500.0,0.00098999,120]
[342992383,1732266641711,-1740.77,0.00098999,120]
[342992384,1732266641721,-1740.77,0.00098999,120]
[342992385,1732266641731,-689.96,0.00098999,120]
[342992386,1732266641742,-689.96,0.00098999,120]
[342992387,1732266641752,-500.0,0.00098999,120]
[342992388,1732266641763,-500.0,0.00098999,120]
[342992389,1732266641774,-884.31,0.00098999,120]
[342992390,1732266641784,-884.31,0.00098999,120]
[342992391,1732266641794,-629.28,0.00098999,120]
[342992392,1732266641805,-594.19,0.00098999,120]
[342992393,1732266641815,-594.19,0.00098999,120]
[342992394,1732266641826,-540.38,0.00098999,120]
[342992395,1732266641836,-540.38,0.00098999,120]
[342992396,1732266641849,-540.38,0.00098999,120]
[342992397,1732266641859,-2012289.62699336,0.00099,45]
[342992398,1732266641874,-1359.888,0.00099,45]
[342992399,1732266641887,-196430.95564992,0.00099,45]
[342992400,1732266641902,-13253.22423378,0.00099,45]
[342992401,1732266642023,-788.30346052,0.00099,45]
[342992402,1732266642034,-1104.79,0.00099,45]
[342992403,1732266642045,-391.24499981,0.00099,45]
[342992404,1732266642056,-274624.6025466,0.00099,45]
[342992405,1732266642073,-34469.4880534,0.00099,45]
[342992431,1732266643301,-126.93709997,0.00084109,2]
[342992433,1732266643312,-130.11120003,0.00084109,2]
[342992435,1732266643324,-204.0,0.0009899,120]
[342992437,1732266643333,-3169.87264494,0.00099,45]
[342992438,1732266643344,-711452.04675647,0.00099,45]
[342992439,1732266643357,-1059.8081,0.00099,45]
[342992445,1732266643435,-49190.47480242,0.00099,45]
[342992446,1732266643447,-3811.63553949,0.00099,45]
[342992508,1732266646196,-5633.91404603,0.00099,45]
[342992509,1732266646208,-107075.25736591,0.00099,45]
[342992510,1732266646439,-14520.33528961,0.00099,45]
[342992511,1732266688240,211.06573107,0.00038,120]
[342992512,1732266696539,211.06573107,0.0004,120]
[342992513,1732266704834,422.13146213,0.00043,120]
[342992514,1732266714770,527.66432767,0.00046,120]
[342992515,1732266723369,527.66432766,0.00048,120]
[342992516,1732266729921,306.0,0.0003,120]
[342992517,1732266759604,150.0,0.00054795,2]
[342992518,1732266789121,49850.0,0.0004,120]
[342992519,1732266789143,6142.9714035,0.0004,120]
[342992520,1732266895651,161.86,0.00041096,2]
[342992525,1732267321864,-211.06573107,0.00043292,120]
[342992526,1732267321899,-901.83476183,0.00043292,120]
[342992527,1732267509489,296830.75500435,0.0001,2]
[342992528,1732267511987,81653.66039784,0.00042,14]
[342992529,1732267512736,13888.11742124,0.00025,2]
[342992530,1732267535396,150.53932072,0.0001,2]
[342992531,1732267537054,2269.94608908,8e-05,2]
[342992533,1732267555378,667.77698478,0.00025,2]
[342992534,1732267555983,152.30778381,6.94e-05,2]
[342992535,1732267556711,182.24227777,0.00043292,120]
[342992536,1732267570192,1662.94149321,0.000199,3]
[342992537,1732267583002,374.21949636,0.00043292,120]
[342992538,1732267591486,1638.42545142,0.00015,2]
[342992539,1732267618747,161.11,0.00041096,2]
[342992540,1732267628753,1517.64,0.000153,2]
[342992541,1732267630271,1599.11875074,0.00041642,2]
[342992542,1732267642771,1511.02990977,0.0001305,2]
[342992543,1732267647126,-161.11777853,0.0005,120]
[342992544,1732267647150,-623.49813488,0.0005856,120]
[342992545,1732267676152,289.49033997,0.00043292,120]
[342992546,1732267680652,752.31110378,0.0001,2]
[342992547,1732267713458,1504.51291003,0.00042,120]
[342992548,1732267717769,1872.5567848,0.00043292,120]
[342992549,1732267721177,5389.0,0.00015,2]
[342992552,1732267724832,153.40276341,0.00039,120]
[342992553,1732267725077,922.9160341,0.00043,120]
[342992554,1732267726158,1289.00494977,0.00045,120]
[342992561,1732267747162,-170.29684411,0.000477,120]
[342992562,1732267753119,-10826.68213128,0.0005856,120]
[342992567,1732267768105,-3457.089454,0.0006,120]
[342992587,1732267832324,-7903.38033474,0.00043292,30]
[342992588,1732267832337,-340.05808047,0.00043292,2]
[342992589,1732267832347,-152.70567665,0.00043292,30]
[342992590,1732267832357,-500.92121161,0.00043292,2]
[342992591,1732267832367,-127.87306126,0.00043292,2]
[342992592,1732267832380,-5834.22303275,0.00043292,2]
[342992593,1732267832389,-3901.29596229,0.00043292,2]
[342992594,1732267832399,-6656.95215322,0.00043292,4]
[342992595,1732267832408,-2371.18717203,0.00043292,30]
[342992596,1732267832418,-5342.66826477,0.00043292,2]
[342992597,1732267832430,-5441.0618805,0.00043292,2]
[342992598,1732267832439,-7208.30881264,0.0006,120]
[342992599,1732267832448,-803.18302655,0.00060223,120]
[342992600,1732267832457,-204.82797391,0.000609,15]
[342992601,1732267832467,-3598.85889243,0.00063,120]
[342992602,1732267832478,-35046.53968399,0.00063,120]
[342992603,1732267832506,-17617.5,0.00063,120]
[342992604,1732267832518,-43760.0,0.00063,120]
[342992605,1732267832537,-5804.59803058,0.00063,120]
[342992606,1732267832570,-6695.5,0.00063,120]
[342992607,1732267832660,-9109.48,0.00063,120]
[342992608,1732267832677,-7311.31437629,0.00063,120]
[342992609,1732267832688,-27637.3545605,0.00063,120]
[342992610,1732267832699,-8008.51950183,0.00063,120]
[342992611,1732267832712,-35410.33495438,0.00063,120]
[342992612,1732267832731,-220.13,0.000651,2]
[342992613,1732267832741,-2298.85147143,0.000655,120]
[342992614,1732267832754,-2804.14254069,0.000655,120]
[342992615,1732267832764,-154.589909,0.00069672,120]
[342992616,1732267832773,-10000.0,0.0007248,120]
[342992617,1732267832783,-564.0,0.00078401,120]